[Event "FIDE Grand Swiss 2023"]
[Site "Villa Marina, Douglas, Isle of Man, Isle Of Man"]
[Date "2023.11.02"]
[Round "8.30"]
[White "Murzin, Volodar"]
[Black "Shirov, Alexei"]
[Result "0-1"]
[TimeControl "40/90 + 30 + 30s/move"]
[WhiteFideId "44155573"]
[BlackFideId "2209390"]
[WhiteElo "2633"]
[BlackElo "2655"]

1. c4 {[%clk 01:40:56]} {[%emt 00:00:03]} Nf6 {[%clk 01:39:32]} {[%emt
00:01:28]} 2. Nc3 {[%clk 01:40:53]} {[%emt 00:00:34]} d5 {[%clk 01:39:42]}
{[%emt 00:00:19]} 3. d4 {[%clk 01:39:55]} {[%emt 00:01:29]} c6 {[%clk
01:36:29]} {[%emt 00:03:44]} 4. cxd5 {[%clk 01:34:33]} {[%emt 00:05:51]} cxd5
{[%clk 01:36:19]} {[%emt 00:00:40]} 5. Bf4 {[%clk 01:34:57]} {[%emt 00:00:06]}
Nc6 {[%clk 01:36:12]} {[%emt 00:00:37]} 6. e3 {[%clk 01:35:19]} {[%emt
00:00:08]} a6 {[%clk 01:35:23]} {[%emt 00:01:19]} 7. Bd3 {[%clk 01:35:36]}
{[%emt 00:00:13]} Bg4 {[%clk 01:35:38]} {[%emt 00:00:15]} 8. Nge2 {[%clk
01:32:43]} {[%emt 00:03:23]} e6 {[%clk 01:35:15]} {[%emt 00:00:53]} 9. O-O
{[%clk 01:31:31]} {[%emt 00:01:43]} Be7 {[%clk 01:33:16]} {[%emt 00:02:29]} 10.
Rc1 {[%clk 01:30:48]} {[%emt 00:01:13]} O-O {[%clk 01:31:01]} {[%emt 00:02:45]}
11. Na4 {[%clk 01:24:01]} {[%emt 00:07:16]} Nd7 {[%clk 01:26:35]} {[%emt
00:04:56]} 12. a3 {[%clk 01:07:34]} {[%emt 00:16:58]} Rc8 {[%clk 01:21:06]}
{[%emt 00:05:58]} 13. Bg3 {[%clk 01:04:47]} {[%emt 00:03:16]} e5 {[%clk
01:14:45]} {[%emt 00:06:52]} 14. f3 {[%clk 00:44:11]} {[%emt 00:21:07]} Be6
{[%clk 01:13:53]} {[%emt 00:01:21]} 15. Rxc6 {[%clk 00:43:05]} {[%emt
00:01:37]} bxc6 {[%clk 00:47:52]} {[%emt 00:26:32]} 16. dxe5 {[%clk 00:42:31]}
{[%emt 00:01:03]} Nb6 {[%clk 00:45:16]} {[%emt 00:03:06]} 17. f4 {[%clk
00:24:15]} {[%emt 00:18:46]} Bg4 {[%clk 00:44:24]} {[%emt 00:01:22]} 18. Nac3
{[%clk 00:24:32]} {[%emt 00:00:13]} Nc4 {[%clk 00:43:56]} {[%emt 00:00:58]} 19.
Qc1 {[%clk 00:24:27]} {[%emt 00:00:35]} Bxe2 {[%clk 00:42:31]} {[%emt
00:01:55]} 20. Nxe2 {[%clk 00:24:03]} {[%emt 00:00:54]} Qb6 {[%clk 00:38:03]}
{[%emt 00:04:58]} 21. Bxc4 {[%clk 00:23:25]} {[%emt 00:01:09]} dxc4 {[%clk
00:38:29]} {[%emt 00:00:03]} 22. Nd4 {[%clk 00:23:43]} {[%emt 00:00:12]} Rfd8
{[%clk 00:35:06]} {[%emt 00:03:53]} 23. Be1 {[%clk 00:20:15]} {[%emt 00:03:58]}
Bc5 {[%clk 00:26:05]} {[%emt 00:09:31]} 24. Bc3 {[%clk 00:20:14]} {[%emt
00:00:31]} Bxd4 {[%clk 00:26:29]} {[%emt 00:00:06]} 25. exd4 {[%clk 00:20:38]}
{[%emt 00:00:07]} Rd5 {[%clk 00:21:42]} {[%emt 00:05:16]} 26. Kh1 {[%clk
00:13:35]} {[%emt 00:07:33]} f5 {[%clk 00:22:04]} {[%emt 00:00:09]} 27. Qc2
{[%clk 00:10:51]} {[%emt 00:03:14]} g6 {[%clk 00:22:25]} {[%emt 00:00:08]} 28.
Qe2 {[%clk 00:08:17]} {[%emt 00:03:05]} c5 {[%clk 00:20:14]} {[%emt 00:02:40]}
29. dxc5 {[%clk 00:07:06]} {[%emt 00:01:41]} Qxc5 {[%clk 00:20:35]} {[%emt
00:00:09]} 30. e6 {[%clk 00:06:26]} {[%emt 00:01:11]} Re8 {[%clk 00:16:59]}
{[%emt 00:04:06]} 31. Re1 {[%clk 00:06:54]} {[%emt 00:00:02]} Rd6 {[%clk
00:16:40]} {[%emt 00:00:48]} 32. e7 {[%clk 00:06:59]} {[%emt 00:00:25]} Qd5
{[%clk 00:17:02]} {[%emt 00:00:08]} 33. Bb4 {[%clk 00:04:43]} {[%emt 00:02:47]}
Rd7 {[%clk 00:15:21]} {[%emt 00:02:11]} 34. a4 {[%clk 00:04:35]} {[%emt
00:00:38]} Rb7 {[%clk 00:14:56]} {[%emt 00:00:54]} 35. Ba3 {[%clk 00:04:27]}
{[%emt 00:00:39]} Rb3 {[%clk 00:15:08]} {[%emt 00:00:17]} 36. Rc1 {[%clk
00:03:10]} {[%emt 00:01:47]} Rd3 {[%clk 00:12:29]} {[%emt 00:03:09]} 37. Bb4
{[%clk 00:03:11]} {[%emt 00:00:29]} Rd4 {[%clk 00:11:58]} {[%emt 00:01:01]} 38.
a5 {[%clk 00:02:18]} {[%emt 00:01:23]} Qe4 {[%clk 00:09:28]} {[%emt 00:03:00]}
39. Qf2 {[%clk 00:01:59]} {[%emt 00:00:49]} Qxf4 {[%clk 00:09:04]} {[%emt
00:00:55]} 40. Qc2 {[%clk 00:02:11]} {[%emt 00:00:17]} Qe4 {[%clk 00:06:26]}
{[%emt 00:03:06]} 41. Qf2 {[%clk 00:47:25]} {[%emt 00:05:18]} Qd5 {[%clk
00:55:24]} {[%emt 00:01:31]} 42. Re1 {[%clk 00:42:57]} {[%emt 00:04:59]} Rd1
{[%clk 00:54:14]} {[%emt 00:01:40]} 43. h3 {[%clk 00:41:35]} {[%emt 00:01:52]}
Rxe1+ {[%clk 00:43:16]} {[%emt 00:11:28]} 44. Qxe1 {[%clk 00:41:53]} {[%emt
00:00:13]} f4 {[%clk 00:37:35]} {[%emt 00:06:10]} 45. Qe2 {[%clk 00:34:28]}
{[%emt 00:07:55]} Kf7 {[%clk 00:36:44]} {[%emt 00:01:21]} 46. Kh2 {[%clk
00:23:34]} {[%emt 00:11:24]} Rb8 {[%clk 00:30:33]} {[%emt 00:06:40]} 47. Ba3
{[%clk 00:16:35]} {[%emt 00:07:32]} h5 {[%clk 00:24:04]} {[%emt 00:06:58]} 48.
Qf2 {[%clk 00:14:21]} {[%emt 00:02:43]} Qe5 {[%clk 00:16:28]} {[%emt 00:08:06]}
49. Qf3 {[%clk 00:09:22]} {[%emt 00:05:30]} Kg7 {[%clk 00:15:22]} {[%emt
00:01:35]} 50. Bb4 {[%clk 00:08:24]} {[%emt 00:01:28]} Kh7 {[%clk 00:10:47]}
{[%emt 00:05:05]} 51. Bd2 {[%clk 00:05:10]} {[%emt 00:03:45]} Re8 {[%clk
00:06:44]} {[%emt 00:04:33]} 52. Bb4 {[%clk 00:04:53]} {[%emt 00:00:47]} Qg5
{[%clk 00:02:42]} {[%emt 00:04:31]} 53. Kh1 {[%clk 00:04:05]} {[%emt 00:01:20]}
Qf6 {[%clk 00:02:52]} {[%emt 00:00:19]} 54. Bc3 {[%clk 00:03:03]} {[%emt
00:01:33]} Qd6 {[%clk 00:02:32]} {[%emt 00:00:49]} 55. Qe4 {[%clk 00:02:25]}
{[%emt 00:01:07]} Rxe7 {[%clk 00:02:34]} {[%emt 00:00:28]} 56. Qa8 {[%clk
00:02:52]} {[%emt 00:00:05]} g5 {[%clk 00:02:11]} {[%emt 00:00:52]} 57. Qh8+
{[%clk 00:03:06]} {[%emt 00:00:15]} Kg6 {[%clk 00:02:37]} {[%emt 00:00:04]} 58.
Qg8+ {[%clk 00:03:12]} {[%emt 00:00:25]} Kf5 {[%clk 00:02:56]} {[%emt
00:00:10]} 59. Qxc4 {[%clk 00:00:44]} {[%emt 00:02:59]} g4 {[%clk 00:02:35]}
{[%emt 00:00:51]} 60. Bd4 {[%clk 00:00:34]} {[%emt 00:00:40]} Re1+ {[%clk
00:01:37]} {[%emt 00:01:27]} 61. Bg1 {[%clk 00:01:02]} {[%emt 00:00:03]} gxh3
{[%clk 00:10:42]} {[%emt 00:06:25]} 62. Qf7+ {[%clk 00:16:11]} {[%emt
00:00:20]} Kg5 {[%clk 00:11:03]} {[%emt 00:00:09]} 63. Qg8+ {[%clk 00:16:36]}
{[%emt 00:00:06]} Qg6 {[%clk 00:08:50]} {[%emt 00:02:43]} 64. Qd8+ {[%clk
00:16:56]} {[%emt 00:00:10]} Qf6 {[%clk 00:09:13]} {[%emt 00:00:06]} 65. Qg8+
{[%clk 00:17:16]} {[%emt 00:00:10]} Kh6 {[%clk 00:09:28]} {[%emt 00:00:15]} 66.
Kh2 {[%clk 00:17:38]} {[%emt 00:00:08]} hxg2 {[%clk 00:08:36]} {[%emt
00:01:22]} 0-1

[Event "FIDE Grand Swiss 2023"]
[Site "Villa Marina, Douglas, Isle of Man, Isle Of Man"]
[Date "2023.11.02"]
[Round "8.31"]
[White "Bartel, Mateusz"]
[Black "Suleymanli, Aydin"]
[Result "1/2-1/2"]
[TimeControl "40/90 + 30 + 30s/move"]
[WhiteFideId "1112635"]
[BlackFideId "13413937"]
[WhiteElo "2651"]
[BlackElo "2588"]

1. e4 {[%clk 01:40:57]} {[%emt 00:00:02]} e5 {[%clk 01:40:53]} {[%emt
00:00:07]} 2. Nf3 {[%clk 01:41:20]} {[%emt 00:00:06]} Nc6 {[%clk 01:41:22]}
{[%emt 00:00:03]} 3. Bb5 {[%clk 01:41:41]} {[%emt 00:00:07]} a6 {[%clk
01:41:49]} {[%emt 00:00:04]} 4. Ba4 {[%clk 01:42:04]} {[%emt 00:00:07]} Nf6
{[%clk 01:42:14]} {[%emt 00:00:04]} 5. O-O {[%clk 01:42:27]} {[%emt 00:00:07]}
Be7 {[%clk 01:42:39]} {[%emt 00:00:06]} 6. d3 {[%clk 01:42:51]} {[%emt
00:00:06]} b5 {[%clk 01:43:02]} {[%emt 00:00:08]} 7. Bb3 {[%clk 01:43:17]}
{[%emt 00:00:04]} d6 {[%clk 01:43:06]} {[%emt 00:00:26]} 8. c3 {[%clk
01:43:41]} {[%emt 00:00:05]} O-O {[%clk 01:43:21]} {[%emt 00:00:15]} 9. h3
{[%clk 01:44:07]} {[%emt 00:00:03]} Bb7 {[%clk 01:43:41]} {[%emt 00:00:11]} 10.
Re1 {[%clk 01:44:05]} {[%emt 00:00:31]} Na5 {[%clk 01:41:04]} {[%emt 00:03:08]}
11. Bc2 {[%clk 01:44:26]} {[%emt 00:00:09]} c5 {[%clk 01:41:31]} {[%emt
00:00:03]} 12. Nbd2 {[%clk 01:39:26]} {[%emt 00:05:29]} Qc7 {[%clk 01:39:36]}
{[%emt 00:02:27]} 13. Nf1 {[%clk 01:38:25]} {[%emt 00:01:30]} Rad8 {[%clk
01:37:30]} {[%emt 00:02:36]} 14. Ng3 {[%clk 01:34:25]} {[%emt 00:04:29]} d5
{[%clk 01:36:57]} {[%emt 00:01:04]} 15. Qe2 {[%clk 01:29:26]} {[%emt 00:05:28]}
c4 {[%clk 01:36:01]} {[%emt 00:01:27]} 16. exd5 {[%clk 01:16:47]} {[%emt
00:13:08]} Rfe8 {[%clk 01:32:46]} {[%emt 00:03:46]} 17. Qxe5 {[%clk 01:00:17]}
{[%emt 00:17:00]} Bd6 {[%clk 01:23:12]} {[%emt 00:10:03]} 18. Qg5 {[%clk
01:00:27]} {[%emt 00:00:20]} h6 {[%clk 00:50:41]} {[%emt 00:33:01]} 19. Qh4
{[%clk 00:59:58]} {[%emt 00:00:59]} cxd3 {[%clk 00:42:56]} {[%emt 00:08:16]} 20.
Rxe8+ {[%clk 00:50:58]} {[%emt 00:09:30]} Rxe8 {[%clk 00:39:04]} {[%emt
00:04:22]} 21. Bxd3 {[%clk 00:51:18]} {[%emt 00:00:10]} Bxg3 {[%clk 00:32:39]}
{[%emt 00:06:55]} 22. Qxg3 {[%clk 00:50:27]} {[%emt 00:01:21]} Qxg3 {[%clk
00:32:41]} {[%emt 00:00:28]} 23. fxg3 {[%clk 00:50:54]} {[%emt 00:00:03]} Bxd5
{[%clk 00:32:13]} {[%emt 00:00:58]} 24. Bf4 {[%clk 00:49:30]} {[%emt 00:01:53]}
Nc4 {[%clk 00:25:33]} {[%emt 00:07:11]} 25. b3 {[%clk 00:48:48]} {[%emt
00:01:12]} g5 {[%clk 00:25:15]} {[%emt 00:00:48]} 26. Bc7 {[%clk 00:46:10]}
{[%emt 00:03:08]} Bxf3 {[%clk 00:19:13]} {[%emt 00:06:33]} 27. gxf3 {[%clk
00:33:27]} {[%emt 00:13:13]} Rc8 {[%clk 00:19:31]} {[%emt 00:00:11]} 28. bxc4
{[%clk 00:33:21]} {[%emt 00:00:37]} Rxc7 {[%clk 00:19:52]} {[%emt 00:00:09]} 29.
Rd1 {[%clk 00:31:30]} {[%emt 00:02:20]} bxc4 {[%clk 00:19:36]} {[%emt
00:00:46]} 30. Be2 {[%emt 00:02:28]} Rc5 {[%clk 00:17:40]} 31. Rd4 {[%clk
00:32:04]} {[%emt 00:00:24]} Nd5 {[%clk 00:17:47]} {[%emt 00:00:22]} 32. Bxc4
{[%clk 00:29:19]} {[%emt 00:03:16]} Nxc3 {[%clk 00:17:12]} {[%emt 00:01:05]} 33.
Kf1 {[%clk 00:28:58]} {[%emt 00:00:51]} Kf8 {[%clk 00:16:34]} {[%emt 00:01:08]}
34. Bb3 {[%clk 00:28:16]} {[%emt 00:01:12]} Ke7 {[%clk 00:14:10]} {[%emt
00:02:55]} 35. a4 {[%clk 00:26:19]} {[%emt 00:02:27]} f5 {[%clk 00:12:39]}
{[%emt 00:02:01]} 36. h4 {[%clk 00:21:02]} {[%emt 00:05:46]} a5 {[%clk
00:11:44]} {[%emt 00:01:26]} 37. Kf2 {[%clk 00:20:51]} {[%emt 00:00:40]} Na2
{[%clk 00:08:36]} {[%emt 00:03:38]} 38. Rd2 {[%clk 00:06:31]} {[%emt 00:14:50]}
Nb4 {[%clk 00:07:36]} {[%emt 00:01:30]} 39. Re2+ {[%clk 00:06:55]} {[%emt
00:00:06]} Kd7 {[%clk 00:07:59]} {[%emt 00:00:07]} 40. Bf7 {[%clk 00:06:42]}
{[%emt 00:00:43]} f4 {[%clk 00:06:50]} {[%emt 00:01:39]} 41. gxf4 {[%clk
00:02:31]} {[%emt 00:04:41]} 1/2-1/2

[Event "FIDE Grand Swiss 2023"]
[Site "Villa Marina, Douglas, Isle of Man, Isle Of Man"]
[Date "2023.11.02"]
[Round "8.32"]
[White "Tari, Aryan"]
[Black "Narayanan.S.L"]
[Result "1/2-1/2"]
[TimeControl "40/90 + 30 + 30s/move"]
[WhiteFideId "1510045"]
[BlackFideId "5058422"]
[WhiteElo "2619"]
[BlackElo "2651"]

1. c4 {[%clk 01:40:56]} {[%emt 00:00:03]} c5 {[%clk 01:40:39]} {[%emt
00:00:23]} 2. Nf3 {[%clk 01:41:13]} {[%emt 00:00:13]} Nf6 {[%clk 01:40:53]}
{[%emt 00:00:16]} 3. Nc3 {[%clk 01:41:35]} {[%emt 00:00:08]} Nc6 {[%clk
01:41:17]} {[%emt 00:00:06]} 4. d4 {[%clk 01:41:46]} {[%emt 00:00:19]} cxd4
{[%clk 01:41:40]} {[%emt 00:00:06]} 5. Nxd4 {[%clk 01:42:13]} {[%emt 00:00:04]}
e6 {[%clk 01:42:03]} {[%emt 00:00:07]} 6. e4 {[%clk 01:42:30]} {[%emt
00:00:12]} Bc5 {[%clk 01:42:09]} {[%emt 00:00:24]} 7. Nb3 {[%clk 01:42:51]}
{[%emt 00:00:10]} Bb4 {[%clk 01:42:33]} {[%emt 00:00:06]} 8. Bd3 {[%clk
01:42:59]} {[%emt 00:00:22]} d5 {[%clk 01:42:21]} {[%emt 00:00:41]} 9. exd5
{[%clk 01:42:24]} {[%emt 00:01:06]} exd5 {[%clk 01:42:46]} {[%emt 00:00:05]} 10.
cxd5 {[%clk 01:42:48]} {[%emt 00:00:06]} Qxd5 {[%clk 01:43:03]} {[%emt
00:00:12]} 11. O-O {[%clk 01:41:54]} {[%emt 00:01:24]} Bxc3 {[%clk 01:43:29]}
{[%emt 00:00:04]} 12. bxc3 {[%clk 01:42:16]} {[%emt 00:00:09]} O-O {[%clk
01:43:54]} {[%emt 00:00:05]} 13. c4 {[%clk 01:41:25]} {[%emt 00:01:21]} Qd7
{[%clk 01:44:19]} {[%emt 00:00:05]} 14. Bg5 {[%clk 01:32:05]} {[%emt 00:09:50]}
Rd8 {[%clk 01:36:34]} {[%emt 00:08:14]} 15. Bxf6 {[%clk 01:26:33]} {[%emt
00:06:03]} gxf6 {[%clk 01:36:57]} {[%emt 00:00:06]} 16. Be4 {[%clk 01:24:51]}
{[%emt 00:02:12]} Qxd1 {[%clk 01:37:02]} {[%emt 00:00:25]} 17. Rfxd1 {[%clk
01:24:51]} Be6 {[%clk 01:27:27]} {[%emt 00:10:35]} 18. Nc5 {[%clk 01:15:13]}
{[%emt 00:10:09]} f5 {[%clk 01:27:41]} {[%emt 00:00:16]} 19. Bf3 {[%clk
00:57:42]} {[%emt 00:18:01]} Rxd1+ {[%clk 01:21:00]} {[%emt 00:07:10]} 20. Rxd1
{[%clk 00:57:39]} {[%emt 00:00:33]} Bxc4 {[%clk 01:21:20]} {[%emt 00:00:10]} 21.
Nxb7 {[%clk 00:57:57]} {[%emt 00:00:13]} Ne5 {[%clk 01:21:40]} {[%emt
00:00:09]} 22. Bd5 {[%clk 00:56:33]} {[%emt 00:01:55]} Rb8 {[%clk 01:20:13]}
{[%emt 00:01:56]} 23. h3 {[%clk 00:46:02]} {[%emt 00:11:02]} Bxa2 {[%clk
01:14:13]} {[%emt 00:06:30]} 24. Bxa2 {[%clk 00:46:05]} {[%emt 00:00:27]} Rxb7
{[%clk 01:14:37]} {[%emt 00:00:05]} 25. Rd5 {[%clk 00:46:32]} {[%emt 00:00:04]}
Re7 {[%clk 01:12:32]} {[%emt 00:02:35]} 26. f4 {[%clk 00:46:40]} {[%emt
00:00:21]} Nc6 {[%clk 01:12:32]} {[%emt 00:00:30]} 27. Rxf5 {[%clk 00:46:31]}
{[%emt 00:00:40]} Nd4 {[%clk 01:12:49]} {[%emt 00:00:12]} 28. Rg5+ {[%clk
00:46:07]} {[%emt 00:00:55]} Kf8 {[%clk 01:13:11]} {[%emt 00:00:08]} 29. Kh2
{[%clk 00:42:20]} {[%emt 00:04:17]} Ne2 {[%clk 01:08:23]} {[%emt 00:05:17]} 30.
Rf5 {[%clk 00:40:00]} {[%emt 00:02:50]} Kg7 {[%clk 01:08:38]} {[%emt 00:00:16]}
1/2-1/2

[Event "FIDE Grand Swiss 2023"]
[Site "Villa Marina, Douglas, Isle of Man, Isle Of Man"]
[Date "2023.11.02"]
[Round "8.33"]
[White "Melkumyan, Hrant"]
[Black "Kuybokarov, Temur"]
[Result "1/2-1/2"]
[TimeControl "40/90 + 30 + 30s/move"]
[WhiteFideId "13302485"]
[BlackFideId "14203049"]
[WhiteElo "2650"]
[BlackElo "2584"]

1. Nf3 {[%clk 01:40:55]} {[%emt 00:00:03]} Nf6 {[%clk 01:40:23]} {[%emt
00:00:37]} 2. c4 {[%clk 01:41:16]} {[%emt 00:00:10]} c5 {[%clk 01:40:15]}
{[%emt 00:00:39]} 3. Nc3 {[%clk 01:41:35]} {[%emt 00:00:10]} e6 {[%clk
01:40:28]} {[%emt 00:00:18]} 4. g3 {[%clk 01:41:48]} {[%emt 00:00:16]} d5
{[%clk 01:40:15]} {[%emt 00:00:43]} 5. cxd5 {[%clk 01:41:52]} {[%emt 00:00:26]}
Nxd5 {[%clk 01:40:25]} {[%emt 00:00:20]} 6. Bg2 {[%clk 01:41:15]} {[%emt
00:01:06]} Nc6 {[%clk 01:40:31]} {[%emt 00:00:25]} 7. O-O {[%clk 01:40:41]}
{[%emt 00:01:03]} Be7 {[%clk 01:40:49]} {[%emt 00:00:13]} 8. d4 {[%clk
01:35:16]} {[%emt 00:05:56]} O-O {[%clk 01:38:16]} {[%emt 00:03:03]} 9. e4
{[%clk 01:31:18]} {[%emt 00:04:28]} Ndb4 {[%clk 01:37:32]} {[%emt 00:01:14]} 10.
dxc5 {[%clk 01:27:45]} {[%emt 00:04:02]} Bxc5 {[%clk 01:37:26]} {[%emt
00:00:37]} 11. a3 {[%clk 01:24:26]} {[%emt 00:03:49]} Nd3 {[%clk 01:18:10]}
{[%emt 00:19:46]} 12. b4 {[%clk 01:20:42]} {[%emt 00:04:14]} Nxc1 {[%clk
01:15:56]} {[%emt 00:02:44]} 13. Qxc1 {[%clk 01:19:59]} {[%emt 00:01:13]} Bb6
{[%clk 01:12:24]} {[%emt 00:04:01]} 14. e5 {[%clk 01:10:50]} {[%emt 00:09:39]}
Bd7 {[%clk 01:00:40]} {[%emt 00:12:14]} 15. Rd1 {[%clk 00:59:51]} {[%emt
00:11:29]} Rc8 {[%clk 00:50:39]} {[%emt 00:10:32]} 16. Qb2 {[%clk 00:50:12]}
{[%emt 00:10:09]} Ne7 {[%clk 00:43:10]} {[%emt 00:07:58]} 17. Rac1 {[%clk
00:42:16]} {[%emt 00:08:26]} Qe8 {[%clk 00:30:09]} {[%emt 00:13:30]} 18. Ng5
{[%clk 00:37:51]} {[%emt 00:04:56]} Ng6 {[%clk 00:20:47]} {[%emt 00:09:53]} 19.
Bxb7 {[%clk 00:35:05]} {[%emt 00:03:15]} Nxe5 {[%clk 00:20:26]} {[%emt
00:00:52]} 20. Bxc8 {[%clk 00:32:31]} {[%emt 00:03:03]} Bxc8 {[%clk 00:20:42]}
{[%emt 00:00:15]} 21. Na4 {[%clk 00:18:42]} {[%emt 00:14:19]} Qxa4 {[%clk
00:18:49]} {[%emt 00:02:22]} 22. Qxe5 {[%clk 00:19:06]} {[%emt 00:00:06]} h6
{[%clk 00:12:36]} {[%emt 00:06:43]} 23. Ne4 {[%clk 00:19:08]} {[%emt 00:00:28]}
Qxa3 {[%clk 00:12:49]} {[%emt 00:00:17]} 24. Nd6 {[%clk 00:12:45]} {[%emt
00:06:53]} Qf3 {[%clk 00:12:03]} {[%emt 00:01:16]} 25. Rd2 {[%clk 00:12:15]}
{[%emt 00:01:00]} Bb7 {[%clk 00:09:41]} {[%emt 00:02:53]} 26. Nxb7 {[%clk
00:12:26]} {[%emt 00:00:19]} Qxb7 {[%clk 00:10:06]} {[%emt 00:00:04]} 27. Qe2
{[%clk 00:11:23]} {[%emt 00:01:33]} Qe7 {[%clk 00:08:11]} {[%emt 00:02:25]} 28.
Qc4 {[%clk 00:09:39]} {[%emt 00:02:14]} e5 {[%emt 00:02:06]} 29. Qe4 {[%clk
00:08:47]} f5 {[%clk 00:07:14]} {[%emt 00:01:14]} 30. Qd5+ {[%clk 00:08:31]}
{[%emt 00:00:45]} Kh7 {[%clk 00:06:43]} {[%emt 00:01:01]} 31. b5 {[%clk
00:06:01]} {[%emt 00:03:02]} e4 {[%clk 00:05:52]} {[%emt 00:01:20]} 32. Re2
{[%clk 00:04:50]} {[%emt 00:01:40]} Qg5 {[%clk 00:04:34]} {[%emt 00:01:48]} 33.
Rf1 {[%clk 00:00:50]} {[%emt 00:04:30]} Qg4 {[%clk 00:04:21]} {[%emt 00:00:43]}
34. Qd1 {[%clk 00:00:51]} {[%emt 00:00:29]} Qh3 {[%clk 00:02:11]} {[%emt
00:02:40]} 35. Qc2 {[%clk 00:00:40]} {[%emt 00:00:41]} Kh8 {[%clk 00:02:00]}
{[%emt 00:00:41]} 36. Re3 {[%clk 00:00:32]} {[%emt 00:00:38]} f4 {[%clk
00:01:54]} {[%emt 00:00:36]} 37. gxf4 {[%clk 00:00:47]} {[%emt 00:00:15]} Bxe3
{[%clk 00:02:14]} {[%emt 00:00:11]} 38. fxe3 {[%clk 00:01:13]} {[%emt
00:00:03]} Qxe3+ {[%clk 00:02:31]} {[%emt 00:00:14]} 39. Qf2 {[%clk 00:01:09]}
{[%emt 00:00:33]} Qh3 {[%clk 00:00:55]} {[%emt 00:02:06]} 40. Qxa7 {[%clk
00:00:47]} {[%emt 00:00:53]} e3 {[%clk 00:00:32]} {[%emt 00:00:52]} 41. Qa2
{[%clk 00:46:47]} {[%emt 00:04:30]} Qh5 {[%clk 00:42:36]} {[%emt 00:08:26]} 42.
Qe6 {[%clk 00:33:58]} {[%emt 00:13:20]} Qe2 {[%clk 00:18:28]} {[%emt 00:24:37]}
43. b6 {[%clk 00:25:32]} {[%emt 00:08:57]} Qd2 {[%clk 00:15:55]} {[%emt
00:03:03]} 44. Qe7 {[%clk 00:24:52]} {[%emt 00:01:09]} Rf6 {[%clk 00:06:42]}
{[%emt 00:09:43]} 45. Qe8+ {[%clk 00:21:10]} {[%emt 00:04:12]} Kh7 {[%clk
00:06:13]} {[%emt 00:00:59]} 46. Qe4+ {[%clk 00:21:32]} {[%emt 00:00:08]} Rg6+
{[%clk 00:05:45]} {[%emt 00:00:58]} 47. Kh1 {[%clk 00:21:57]} {[%emt 00:00:05]}
e2 {[%clk 00:03:07]} {[%emt 00:03:08]} 48. Rg1 {[%clk 00:22:24]} {[%emt
00:00:03]} Qd5 {[%clk 00:02:48]} {[%emt 00:00:49]} 49. Qxd5 {[%emt 00:00:07]}
Rxg1+ {[%emt 00:00:03]} 50. Kxg1 {[%clk 00:22:33]} {[%emt 00:00:11]} e1=Q+
{[%clk 00:03:16]} {[%emt 00:00:03]} 51. Kg2 {[%clk 00:22:57]} {[%emt 00:00:05]}
Qe2+ {[%clk 00:03:44]} {[%emt 00:00:02]} 52. Kg3 {[%clk 00:23:18]} {[%emt
00:00:09]} Qe3+ {[%clk 00:04:09]} {[%emt 00:00:06]} 53. Kg4 {[%clk 00:23:35]}
{[%emt 00:00:12]} Qxb6 {[%clk 00:04:35]} {[%emt 00:00:05]} 54. Qe4+ {[%clk
00:23:55]} {[%emt 00:00:09]} Qg6+ {[%clk 00:05:02]} {[%emt 00:00:03]} 55. Qxg6+
{[%clk 00:24:15]} {[%emt 00:00:10]} Kxg6 {[%clk 00:05:30]} {[%emt 00:00:02]} 56.
f5+ {[%clk 00:24:40]} {[%emt 00:00:05]} Kf6 {[%clk 00:05:58]} {[%emt 00:00:02]}
57. Kf4 {[%clk 00:25:07]} {[%emt 00:00:03]} g6 {[%clk 00:06:15]} {[%emt
00:00:14]} 58. fxg6 {[%clk 00:25:33]} {[%emt 00:00:03]} Kxg6 {[%clk 00:06:43]}
{[%emt 00:00:02]} 59. h4 {[%clk 00:25:58]} {[%emt 00:00:05]} Kf6 {[%clk
00:07:05]} {[%emt 00:00:08]} 60. h5 {[%clk 00:26:24]} {[%emt 00:00:04]} Ke6
{[%clk 00:07:32]} {[%emt 00:00:03]} 61. Ke4 {[%clk 00:26:50]} {[%emt 00:00:04]}
Kf6 {[%clk 00:07:58]} 1/2-1/2